bitfinex/quotes_ETHUSD_20240717
["timestamp","ask_amount","ask_price","bid_price","bid_amount"]
[1721201154513,2.85916,3497.6,3496.9,7.38]
[1721201154717,2.85916,3497.6,3497.0,0.06299915]
[1721201154920,2.85918,3497.5,3497.0,0.06299915]
[1721201156775,2.85895,3497.8,3497.0,0.06299915]
[1721201156776,2.85908,3497.7,3497.0,0.06299915]
[1721201157311,2.85908,3497.7,3497.0,2.92258915]
[1721201160384,2.85951,3497.1,3497.0,0.06299915]
[1721201160590,5.71902,3497.1,3497.0,0.06299915]
[1721201160894,2.8598,3496.8,3496.5,7.38]
[1721201161096,5.13431,3497.0,3496.6,0.0591587]
[1721201161304,2.85945,3497.2,3496.6,0.0591587]
[1721201161305,2.85969,3496.9,3496.6,0.0591587]
[1721201162330,2.85952,3497.1,3496.6,0.0591587]
[1721201162493,2.8596,3497.0,3496.6,0.0591587]
[1721201164515,2.85969,3496.9,3496.6,0.0591587]
[1721201165027,2.85975,3496.8,3496.6,0.0591587]
[1721201165422,2.85975,3496.8,3496.1,10.24032]
[1721201165624,2.85975,3496.8,3496.7,0.05910182]
[1721201166235,2.85975,3496.8,3496.1,2.86032]
[1721201166401,2.85975,3496.8,3496.7,0.05910182]
[1721201166604,2.85975,3496.8,3496.1,2.86032]
[1721201167133,2.85975,3496.8,3496.2,0.05938623]
[1721201167734,0.59952396,3496.9,3496.2,2.91961623]
[1721201168026,3.45912396,3497.0,3496.2,2.91961623]
[1721201168209,2.85967,3496.9,3496.2,2.91961623]
[1721201168685,3.45919396,3496.9,3496.2,2.91961623]
[1721201169124,2.85967,3496.9,3496.2,2.91961623]
[1721201169341,0.59952396,3497.0,3496.3,5.11894]
[1721201169512,0.89914763,3497.1,3496.4,0.05727149]
[1721201169513,0.59952396,3497.1,3496.4,0.05727149]
[1721201169820,0.59952396,3497.1,3496.5,2.85998]
[1721201170196,0.59952396,3497.1,3496.6,0.05727059]
[1721201170417,0.59952396,3497.2,3496.6,0.05727059]
[1721201171202,0.59952396,3497.2,3496.6,2.91718059]
[1721201172603,0.59952396,3497.2,3496.7,2.85981]
[1721201173026,0.59952396,3497.2,3496.8,0.05715684]
[1721201173332,0.59952396,3497.2,3496.7,2.85981]
[1721201173735,0.59952396,3497.2,3496.8,0.05715684]
[1721201174039,0.59952396,3497.2,3496.7,2.85981]
[1721201174214,0.59952396,3497.2,3496.9,0.05709997]
[1721201174395,0.59952396,3497.2,3496.8,0.05715684]
[1721201174602,0.59952396,3497.2,3497.0,0.05704311]
[1721201174803,0.59952396,3497.2,3496.9,0.05709997]
[1721201175028,0.59952396,3497.2,3497.1,0.05698625]
[1721201175240,0.59952396,3497.2,3497.0,0.05704311]
[1721201175558,0.59952396,3497.2,3497.1,0.05698625]
[1721201175559,3.45895396,3497.2,3497.1,0.05698625]
[1721201175698,9.21138113,3497.2,3497.1,0.05698625]
[1721201175898,2.86005,3496.5,3496.2,7.38]
[1721201176133,2.86034,3496.1,3495.6,7.38]
[1721201176444,2.86034,3496.1,3495.7,4.0]
[1721201176445,2.86049,3495.9,3495.7,4.0]
[1721201176653,0.59915517,3495.8,3495.7,4.0]
[1721201177233,3.75906983,3495.9,3495.1,10.24111]
[1721201177437,3.45962953,3495.8,3495.1,10.24111]
[1721201177639,3.45962953,3495.8,3495.1,7.38]
[1721201177640,2.86066,3495.7,3495.1,7.38]
[1721201177938,2.86115,3495.1,3494.5,7.38]
[1721201178100,2.86115,3495.1,3494.3,2.86178]
[1721201178305,3.46019953,3495.1,3494.3,2.86178]
[1721201178599,3.46004953,3495.3,3494.4,2.86169]
[1721201178807,2.86113,3495.2,3494.4,2.86169]
[1721201179313,2.86116,3495.1,3494.4,2.86169]
[1721201179919,2.861,3495.3,3494.4,2.86169]
[1721201180122,2.86107,3495.2,3494.4,2.86169]
[1721201180308,2.86115,3495.1,3494.4,2.86169]
[1721201180510,2.86115,3495.1,3494.2,5.33628]
[1721201181124,2.86115,3495.1,3494.3,2.86179]
[1721201181702,2.86115,3495.1,3494.2,2.4744]
[1721201181905,2.86115,3495.1,3494.2,5.33628]
[1721201182418,2.86099,3495.3,3494.2,5.33628]
[1721201182419,2.86124,3495.0,3494.2,5.33628]
[1721201182731,0.59904953,3495.5,3494.4,2.86171]
[1721201182936,0.89857983,3495.7,3494.2,6.5854]
[1721201182937,2.86108,3495.2,3494.2,5.33626]
[1721201183456,2.86139,3494.8,3494.0,2.86204]
[1721201183749,2.86139,3494.8,3494.1,4.0]
[1721201183928,2.86132,3494.9,3494.1,4.0]
[1721201184137,2.86155,3494.6,3493.8,10.2422]
[1721201184335,2.86155,3494.6,3493.9,2.86212]
[1721201184922,2.4971,3494.9,3493.4,7.38]
[1721201185108,2.86193,3494.2,3493.5,0.09413041]
[1721201185304,2.86193,3494.2,3493.5,0.09412771]
[1721201185723,2.86193,3494.2,3493.5,2.86244]
[1721201186840,2.86172,3494.4,3493.5,2.86244]
[1721201187217,2.86172,3494.4,3493.4,7.38]
[1721201187218,2.86172,3494.4,3493.6,2.86236]
[1721201187545,2.8618,3494.3,3493.6,2.91785912]
[1721201187747,2.8618,3494.3,3493.6,0.05549912]
[1721201187945,2.8618,3494.3,3493.4,7.38]
[1721201188244,2.8618,3494.3,3493.5,2.9179461]
[1721201188445,5.72333,3494.5,3493.6,2.86236]
[1721201188625,2.86172,3494.4,3493.6,2.86236]
[1721201188826,2.86172,3494.4,3493.7,0.05544215]
[1721201191183,2.8618,3494.3,3493.7,0.05544215]
[1721201191960,2.86172,3494.4,3493.7,0.05544215]
[1721201192477,2.86221,3493.8,3493.7,0.05544215]
[1721201192637,5.72442,3493.8,3493.7,0.05544215]
[1721201192979,2.86256,3493.4,3492.8,7.38]
[1721201193194,2.86256,3493.4,3492.6,5.31149]
[1721201193477,2.86256,3493.4,3492.9,0.05263152]
[1721201193679,2.86256,3493.4,3492.6,2.4483]
[1721201193850,2.86256,3493.4,3493.0,0.05257452]
[1721201194050,2.86256,3493.4,3492.6,2.4483]
[1721201194266,2.86256,3493.4,3493.1,0.05251753]
[1721201194474,2.86256,3493.4,3492.5,2.86321]
[1721201194976,2.86256,3493.4,3492.6,0.05280252]
[1721201195279,2.8625,3493.5,3492.6,0.05280252]
[1721201195583,2.86296,3492.9,3492.4,7.38]
[1721201195809,2.86296,3492.9,3492.7,0.05274552]
[1721201195940,2.86296,3492.9,3492.4,7.38]
[1721201196138,2.86263,3493.3,3492.5,0.05285953]
[1721201196339,2.86263,3493.3,3492.5,2.91611953]
[1721201198307,2.86263,3493.3,3492.6,2.86318]
[1721201198667,2.86278,3493.2,3492.7,0.05294903]
[1721201199073,2.86278,3493.2,3492.4,7.38]
[1721201199281,2.86278,3493.2,3492.4,10.24333]
[1721201199485,2.86278,3493.2,3492.5,0.05306304]
[1721201200061,2.86279,3493.1,3492.5,0.05306304]
[1721201200403,2.86294,3493.0,3492.5,0.05306304]
[1721201200694,2.86256,3493.4,3492.5,0.05306304]
[1721201200881,2.863,3492.9,3492.5,0.05306304]
[1721201201083,2.863,3492.9,3492.1,2.86359]
[1721201201461,2.863,3492.9,3492.2,2.9167465]
[1721201202600,2.86268,3493.3,3492.3,2.86337]
[1721201202789,2.86268,3493.3,3492.4,5.22788]
[1721201203101,2.86254,3493.4,3492.5,2.86327]
[1721201203267,2.86267,3493.3,3492.5,2.86327]
[1721201203603,2.8627,3493.2,3492.6,0.05300845]
[1721201204580,2.86279,3493.1,3492.6,0.05300845]
[1721201204980,2.86279,3493.1,3492.3,2.86342]
[1721201205305,2.86279,3493.1,3492.4,0.05312247]
[1721201206167,2.86279,3493.1,3492.4,2.91646247]
[1721201206516,2.86287,3493.0,3492.4,0.05312247]
[1721201207294,2.86275,3493.2,3492.4,2.91647247]
[1721201207674,2.86281,3493.1,3492.4,2.91647247]
[1721201207872,2.86281,3493.1,3492.4,0.05312247]
[1721201208068,2.86281,3493.1,3492.3,2.86343]
[1721201208334,2.86281,3493.1,3492.4,2.91651318]
[1721201209313,2.86287,3493.0,3492.4,0.05317318]
[1721201209697,2.86287,3493.0,3492.3,2.86343]
[1721201209897,2.86287,3493.0,3492.5,0.05311617]
[1721201210089,2.86287,3493.0,3492.4,0.0531756]
[1721201210293,2.86287,3493.0,3492.6,0.05306158]
[1721201210510,2.86287,3493.0,3492.5,0.05311859]
[1721201210683,2.86287,3493.0,3492.7,0.05300457]
[1721201210880,2.86287,3493.0,3492.6,0.05306158]
[1721201211107,2.86287,3493.0,3492.8,0.05294757]
[1721201211304,2.86287,3493.0,3492.7,0.05300457]
[1721201211509,2.86287,3493.0,3492.9,0.05289057]
[1721201211715,2.86287,3493.0,3492.8,0.05294757]
[1721201211918,2.86287,3493.0,3492.9,0.05289057]
[1721201212125,2.86287,3493.0,3492.3,2.86342]
[1721201212499,2.86287,3493.0,3492.4,0.05317399]
[1721201213621,2.86304,3492.8,3492.4,0.05317399]
[1721201213823,2.8632,3492.6,3492.4,0.05317399]
[1721201214026,2.8632,3492.6,3491.9,7.38]
[1721201214188,2.8632,3492.6,3492.5,0.05311859]
[1721201214387,2.8632,3492.6,3491.9,2.86377]
[1721201214623,2.8632,3492.6,3492.0,0.05536985]
[1721201215422,2.86332,3492.5,3492.0,0.05536985]
[1721201216525,2.86298,3492.9,3492.1,2.86359]
[1721201216834,2.86303,3492.8,3492.2,2.9168262]
[1721201217143,2.86281,3493.1,3492.3,2.86338]
[1721201217418,2.2724,3493.7,3492.4,0.05319411]
[1721201217591,2.86295,3492.9,3492.4,0.05319411]
[1721201218727,2.86245,3493.6,3492.5,0.05726391]
[1721201218939,5.86246,3493.5,3492.7,2.86308]
[1721201219422,2.86277,3493.2,3492.8,0.05296608]
[1721201219642,2.86287,3493.0,3492.8,0.05296608]
[1721201219805,2.86324,3492.6,3492.0,7.38]
[1721201220002,2.86324,3492.6,3491.9,5.29466]
[1721201220192,2.86324,3492.6,3492.0,0.00103594]
[1721201220393,2.86324,3492.6,3491.9,5.29466]
[1721201220596,2.86324,3492.6,3492.0,0.00198184]
[1721201221715,2.86306,3492.8,3492.0,2.86566184]
[1721201221921,2.86306,3492.8,3492.1,2.86552819]
[1721201222091,2.86306,3492.8,3492.1,2.86355]
[1721201222717,2.86272,3493.2,3492.3,2.86343]
[1721201222938,2.8628,3493.1,3492.4,2.8633]
[1721201223193,2.86268,3493.3,3492.4,2.8633]
[1721201223412,5.23136,3493.4,3492.5,2.86327]
[1721201223649,3.0,3493.3,3492.6,2.86314]
[1721201225118,3.0,3493.3,3492.7,2.86308]
[1721201225313,3.0,3493.5,3492.7,2.86308]
[1721201225632,5.86246,3493.5,3492.7,2.86308]
[1721201225799,3.0,3493.5,3492.7,2.86308]
[1721201225996,3.0,3493.5,3493.0,2.86286]
[1721201226410,2.86229,3493.7,3493.0,2.86286]
[1721201226624,5.86229,3493.7,3493.0,2.86286]
[1721201226928,2.86237,3493.6,3492.8,2.86302]
[1721201227160,3.0,3493.5,3492.8,2.86302]
[1721201227862,2.86262,3493.3,3492.6,2.86318]
[1721201228228,2.86262,3493.3,3492.5,2.86327]
[1721201228432,2.849737,3493.5,3492.2,2.86348]
[1721201228433,2.8627,3493.2,3492.2,2.86348]
[1721201228624,2.86295,3492.9,3492.2,2.86348]
[1721201228859,2.86295,3492.9,3492.3,2.86342]
[1721201229662,2.86284,3493.1,3492.3,2.86342]
[1721201229850,2.86296,3492.9,3492.3,2.86342]
[1721201232366,2.86296,3492.9,3492.4,0.0531603]
[1721201235447,3.46200953,3492.9,3492.4,0.0531603]
[1721201236071,3.46200953,3492.9,3492.2,2.86351]
[1721201236275,3.46200953,3492.9,3492.5,0.05310975]
[1721201236461,3.46200953,3492.9,3492.2,2.86351]
[1721201236663,0.59904953,3492.8,3492.6,0.05305274]
[1721201236847,0.59904953,3492.8,3492.3,2.86343]
[1721201237049,0.59904953,3492.8,3492.7,0.05299574]
[1721201237250,0.59904953,3492.8,3492.3,2.86343]
[1721201237449,2.86296,3492.9,3492.7,0.05299574]
[1721201237450,3.76153983,3492.9,3492.7,0.05299574]
[1721201237670,3.76153983,3492.9,3492.3,2.86343]
[1721201237994,0.59808327,3492.7,3492.3,2.86343]
[1721201238298,0.59808327,3492.7,3492.0,10.24365]
[1721201238299,3.46149327,3492.4,3492.0,7.38]
[1721201238447,0.59808327,3492.3,3491.7,2.86385]
[1721201238653,0.59808327,3492.3,3491.8,2.86383]
[1721201238856,0.59808327,3492.4,3491.9,0.09417539]
[1721201239054,0.59808327,3492.4,3491.9,0.09417269]
[1721201239652,0.59808327,3492.3,3491.9,0.09417269]
[1721201240079,0.59808327,3492.2,3491.9,0.09417269]
[1721201240593,0.59808327,3492.0,3491.9,0.09417269]
[1721201240806,0.59808327,3492.1,3491.7,2.86393]
[1721201241100,0.59808327,3492.1,3491.8,0.09417809]
[1721201241252,0.59808327,3492.1,3491.8,0.09417539]
[1721201243274,0.59808327,3492.2,3491.8,0.09417539]
[1721201243479,0.59808327,3492.2,3491.6,0.09417539]
[1721201243689,0.59808327,3492.2,3491.6,2.95818539]
[1721201244195,3.46161327,3492.2,3491.6,0.09417539]
[1721201244502,0.59808327,3492.0,3491.6,0.09417539]
[1721201244995,0.59808327,3492.1,3491.6,0.09417539]
[1721201245931,2.86379,3491.9,3491.6,0.09417539]
[1721201246077,2.86379,3491.9,3491.3,0.09418078]
[1721201246796,0.59808327,3492.0,3491.3,2.95843078]
[1721201247096,3.46180327,3492.0,3491.3,2.95843078]
[1721201247296,2.86377,3491.9,3491.4,0.0537926]
[1721201247479,2.86377,3491.9,3491.5,0.09418618]
[1721201247803,2.86377,3491.9,3491.5,0.09418348]
[1721201248090,3.46185327,3491.9,3491.6,0.05367851]
[1721201248390,2.86377,3491.9,3491.7,0.09418078]
[1721201248591,2.86377,3491.9,3491.8,0.05356444]
[1721201248777,2.86377,3491.9,3491.3,2.86425]
[1721201249093,2.86377,3491.9,3491.4,0.14798148]
[1721201249305,2.86377,3491.9,3491.5,0.09418618]
[1721201249460,2.86377,3491.9,3491.5,0.09418348]
[1721201249663,2.86377,3491.9,3491.6,0.05367851]
[1721201249864,0.59808327,3492.0,3491.7,0.09418078]
[1721201250070,0.59808327,3492.0,3491.7,0.09417809]
[1721201250300,0.59808327,3492.0,3491.8,0.05356444]
[1721201250600,3.46177327,3492.0,3491.8,0.05356444]
[1721201250808,0.59808327,3492.0,3491.4,2.86416]
[1721201250965,0.59808327,3492.1,3491.6,2.86397]
[1721201251161,0.59808327,3492.3,3491.8,2.3335]
[1721201251366,0.59808327,3492.4,3491.9,0.09417539]
[1721201251566,0.59808327,3492.4,3491.9,0.09417269]
[1721201251809,0.59808327,3492.4,3491.9,2.95792269]
[1721201252179,0.59808327,3492.3,3492.0,0.05345038]
[1721201252515,0.59808327,3492.3,3492.1,0.09417]
[1721201252685,0.59808327,3492.3,3492.0,0.05345038]
[1721201252879,0.59808327,3492.3,3491.9,2.86375]
[1721201252880,0.59808327,3492.3,3492.2,0.05333633]
[1721201253069,0.59808327,3492.3,3492.1,0.05339335]
[1721201253271,0.59808327,3492.3,3492.2,0.05333633]
[1721201253671,0.59808327,3492.3,3491.7,2.86386]
[1721201253913,3.46152327,3492.3,3492.2,0.05333633]
[1721201254080,4.60367222,3492.3,3491.5,10.24409]
[1721201254282,4.00558895,3492.3,3492.2,0.05333633]
[1721201254498,4.00558895,3492.3,3491.6,2.86401]
[1721201254801,0.59770591,3492.3,3491.7,0.09418078]
[1721201255006,0.59770591,3492.3,3491.5,10.24404]
[1721201255007,0.59770591,3492.2,3491.6,0.09417809]
[1721201255782,2.86366,3492.1,3491.6,0.09417809]
[1721201255983,3.46136591,3492.1,3491.6,0.09417809]
[1721201256309,4.30352113,3492.1,3491.6,0.09417809]
[1721201256510,2.8637,3492.0,3491.6,0.09417809]
[1721201256881,3.46140591,3492.0,3491.6,0.09417809]
[1721201257079,0.59770591,3491.9,3491.6,0.09417809]
[1721201257294,3.46140591,3492.0,3491.6,0.09417809]
[1721201257504,3.46140591,3492.0,3491.4,0.09418078]
[1721201258534,4.38778365,3492.0,3491.4,0.09418078]
[1721201259408,3.46140591,3492.0,3491.4,0.09418078]
[1721201260736,2.86377,3491.9,3491.4,0.09418078]
[1721201261120,2.86386,3491.8,3491.4,0.09418078]
[1721201261430,2.86386,3491.8,3491.2,0.09418909]
[1721201261608,2.86402,3491.6,3491.2,0.09418909]
[1721201261807,2.86402,3491.6,3491.1,0.09419448]
[1721201262107,3.49657859,3491.6,3490.9,0.09419718]
[1721201262306,2.86427,3491.3,3491.2,0.05392763]
[1721201262498,2.77007552,3491.3,3491.2,0.05392763]
[1721201262702,2.77007552,3491.3,3490.8,7.38]
[1721201262913,2.77007552,3491.3,3491.2,0.05392763]
[1721201263125,2.77007552,3491.3,3490.8,7.38]
[1721201263327,2.77007552,3491.3,3491.2,0.05399205]
[1721201263634,3.69250952,3491.3,3491.2,0.05399205]
[1721201263832,5.63434552,3491.3,3491.2,0.05399205]
[1721201264133,5.63434552,3491.3,3490.8,7.38]
[1721201264134,2.86442,3491.2,3490.8,7.38]
[1721201264497,2.77007552,3491.3,3490.9,0.05416322]
[1721201264498,2.86445,3491.1,3490.9,0.05416322]
[1721201265261,2.86445,3491.1,3490.4,5.34623]
[1721201265623,2.86445,3491.1,3490.5,0.05442291]
[1721201266444,3.42790255,3491.1,3490.5,0.05442291]
[1721201266645,2.86451,3491.0,3490.5,0.05442291]
[1721201266979,2.86451,3491.0,3490.2,22.64515]
[1721201267257,2.86451,3491.0,3490.2,2.86515]
[1721201267459,2.86451,3491.0,3490.3,0.0545411]
[1721201267658,0.56345255,3491.1,3490.3,2.9196111]
[1721201268155,2.86453,3491.0,3490.4,2.865]
[1721201268520,2.86453,3491.0,3490.5,0.05442694]
[1721201268962,2.86453,3491.0,3490.4,2.865]
[1721201269270,2.86453,3491.0,3490.6,0.05266819]
[1721201269559,2.86453,3491.0,3490.4,2.865]
[1721201269760,2.86453,3491.0,3490.7,0.05261112]
[1721201270057,2.86453,3491.0,3490.4,2.865]
[1721201270058,2.86453,3491.0,3490.8,0.05255405]
[1721201270462,2.86453,3491.0,3490.4,2.865]
[1721201270623,2.86453,3491.0,3490.9,0.05249699]
[1721201270825,2.86435,3491.2,3490.5,2.86488]
[1721201271021,2.86418,3491.4,3490.6,0.05266819]
[1721201271226,3.5900645,3491.6,3490.7,2.39]
[1721201271580,3.5900645,3491.6,3490.8,0.05255405]
[1721201271581,3.0,3491.5,3490.8,0.05255405]
[1721201271861,6.46180591,3491.5,3490.8,0.05255405]
[1721201272056,3.59770591,3491.5,3490.8,0.05255405]
[1721201272284,2.86427,3491.3,3490.5,2.86488]
[1721201272439,2.86435,3491.2,3490.9,0.05256382]
[1721201272637,2.86424,3491.4,3490.5,2.86488]
[1721201272836,2.86424,3491.4,3490.6,2.91755503]
[1721201273069,2.8643,3491.3,3490.6,2.91755503]
[1721201273470,3.0,3491.5,3490.9,2.86458]
[1721201273971,3.0,3491.5,3491.0,0.05251643]
[1721201274269,3.0,3491.5,3490.9,2.86458]
[1721201274479,3.0,3491.6,3491.1,0.05245937]
[1721201274638,3.0,3491.6,3491.0,0.05251643]
[1721201274639,4.02240657,3491.6,3491.0,0.05251643]
[1721201276071,4.02240657,3491.6,3491.0,2.91701643]
[1721201276372,3.0,3491.8,3491.2,2.86428]
[1721201276672,3.59770591,3491.9,3491.3,0.05234526]
[1721201277473,5.86377,3491.9,3491.3,0.05234526]
[1721201277777,0.872746,3491.8,3491.3,0.05234526]
[1721201278069,0.872746,3491.8,3491.4,0.05228821]
[1721201278449,0.872746,3491.8,3491.2,2.86433]
[1721201278650,0.872746,3491.8,3491.3,0.05234526]
[1721201278835,0.872746,3491.8,3491.2,2.86433]
[1721201279036,0.872746,3491.8,3491.3,0.05234526]
[1721201279237,0.872746,3491.8,3491.2,2.86433]
[1721201279436,1.46866104,3491.8,3491.3,0.05234526]
[1721201279637,1.46866104,3491.8,3491.2,2.86433]
[1721201279875,1.46866104,3491.8,3491.3,0.05234526]
[1721201280376,1.46866104,3491.8,3491.2,2.86433]
[1721201280672,1.46866104,3491.8,3491.3,0.05234526]
[1721201281074,1.46866104,3491.8,3491.2,2.86433]
[1721201281281,0.59591504,3491.8,3491.4,0.05228821]
[1721201281445,0.59591504,3491.8,3491.3,0.05234526]
[1721201281645,3.0,3491.8,3491.1,2.86442]
[1721201281840,3.0,3491.8,3491.2,2.91673231]
[1721201282046,5.8637,3492.0,3491.2,2.91673231]
[1721201282271,6.979594,3492.0,3491.2,2.91673231]
[1721201283143,4.115894,3492.0,3491.2,2.91673231]
[1721201283344,6.979574,3492.0,3491.2,2.91673231]
[1721201284775,4.115894,3492.0,3491.3,2.86424]
[1721201285078,4.115894,3492.0,3491.4,0.05226085]
[1721201285279,6.979584,3492.0,3491.4,0.05226085]
[1721201285781,0.86875257,3491.9,3491.4,0.05226085]
[1721201286949,2.86358,3492.2,3491.4,2.91642085]
[1721201287149,2.86358,3492.2,3491.5,5.25019]
[1721201287600,2.86358,3492.2,3491.6,0.05214676]
[1721201287774,2.86336,3492.4,3491.6,0.05214676]
[1721201287969,2.411,3493.2,3491.7,2.86393]
[1721201287970,2.86306,3492.8,3491.7,2.86393]
[1721201288175,2.86313,3492.7,3491.9,2.8637]
[1721201288374,2.8632,3492.6,3492.0,0.05188963]
[1721201289259,3.0,3492.5,3492.0,0.05188963]
[1721201290393,0.59663292,3492.3,3492.0,0.05188963]
[1721201292688,0.59663292,3492.3,3492.0,2.91555963]
[1721201292884,0.59663292,3492.4,3492.0,2.91555963]
[1721201293889,0.59663292,3492.4,3492.0,0.05188963]
[1721201294472,0.59663292,3492.3,3491.8,2.86384]
[1721201294677,0.59663292,3492.4,3492.1,0.0518326]
[1721201294895,0.59663292,3492.3,3491.9,2.86376]
[1721201295092,0.59663292,3492.3,3492.2,0.05177558]
[1721201295403,6.94932407,3492.3,3492.2,0.05177558]
[1721201295606,2.86368,3492.1,3491.5,7.38]
[1721201295764,2.86368,3492.1,3491.3,2.86424]
[1721201295765,0.59649459,3491.9,3491.3,2.86424]
[1721201295986,0.59649459,3491.8,3491.3,2.86424]
[1721201296264,0.59649459,3491.9,3491.4,0.05214245]
[1721201296962,0.59649459,3491.9,3491.4,2.91631245]
[1721201297965,0.59649459,3491.9,3491.6,2.864]
[1721201298386,0.59649459,3491.9,3491.7,0.05200112]
[1721201298597,0.59649459,3491.9,3491.7,2.91592112]
[1721201298907,0.89474188,3492.1,3491.7,2.91592112]
[1721201298908,0.59649459,3492.1,3491.7,2.91592112]
[1721201299116,3.59649459,3492.2,3491.9,2.86376]
[1721201299268,0.59649459,3492.2,3491.9,2.86376]
[1721201299467,0.59649459,3492.2,3492.0,0.05182841]
[1721201302419,0.59649459,3492.2,3492.0,2.91550841]
[1721201303327,0.59649459,3492.3,3492.0,2.91550841]
[1721201303729,0.59649459,3492.3,3492.1,2.86359]
[1721201303935,0.59649459,3492.5,3492.3,2.86344]
[1721201304142,0.59649459,3492.6,3492.4,2.86336]
[1721201304351,0.59649459,3492.8,3492.4,5.38913778]
[1721201304492,0.89474188,3493.0,3492.4,5.38913778]
[1721201304493,0.59649459,3492.9,3492.4,5.38913778]
[1721201304693,0.59649459,3492.8,3492.4,5.38913778]
[1721201305427,0.59649459,3492.8,3492.4,2.91493778]
[1721201306008,0.59649459,3492.9,3492.4,2.91493778]
[1721201306696,0.59649459,3492.8,3492.4,0.05157778]
[1721201307193,0.59649459,3492.8,3492.3,2.86342]
[1721201307390,0.59649459,3492.8,3492.4,0.05157778]
[1721201307596,0.59649459,3492.9,3492.4,0.05157778]
[1721201312602,3.45936459,3493.0,3492.4,0.05157778]
[1721201313144,0.59649459,3492.9,3492.4,0.05157778]
[1721201314452,0.59649459,3492.8,3492.4,0.05157778]
[1721201314667,0.59649459,3492.9,3492.4,0.05157778]
[1721201315454,0.59649459,3492.8,3492.4,0.05157778]
[1721201315623,3.45953459,3492.8,3492.1,5.17835]
[1721201316138,3.45953459,3492.8,3492.2,0.05164995]
[1721201317006,0.59649459,3492.7,3492.2,0.05164995]
[1721201317211,2.86341,3492.4,3492.2,0.05164995]
[1721201317410,3.45990459,3492.4,3491.7,7.38]
[1721201317669,0.59649459,3492.3,3491.7,7.38]
[1721201317868,0.59649459,3492.3,3491.8,0.05184344]
[1721201318018,0.59649459,3492.3,3491.7,7.38]
[1721201318332,3.45993459,3492.3,3491.8,0.05184344]
[1721201318719,3.45993459,3492.3,3491.7,7.38]
[1721201318918,0.59649459,3492.2,3491.9,0.05178641]
[1721201319139,3.99597924,3492.2,3491.8,0.05184344]
[1721201319308,3.99597924,3492.2,3492.0,0.05172938]
[1721201319309,3.46001459,3492.2,3492.0,0.05172938]
[1721201319506,3.46001459,3492.2,3491.9,0.05178641]
[1721201319712,3.46001459,3492.2,3492.1,0.05167235]
[1721201319948,3.46001459,3492.2,3492.0,0.05172938]
[1721201320161,3.46001459,3492.2,3492.1,0.05167235]
[1721201320513,3.46001459,3492.2,3491.6,2.86401]
[1721201320849,3.46001459,3492.2,3491.7,0.05190047]
[1721201321248,0.59649459,3492.1,3491.7,0.05190047]
[1721201322530,0.59649459,3492.0,3491.7,0.05190047]
[1721201322725,0.59649459,3491.8,3491.7,0.05190047]
[1721201322926,0.89474188,3491.8,3491.3,7.38]
[1721201323159,0.59721144,3491.6,3491.0,2.86445]
[1721201323346,0.59721144,3491.6,3491.0,6.86445]
[1721201323721,0.59721144,3491.6,3491.1,2.86442]
[1721201325261,0.59721144,3491.6,3491.0,1.005]
[1721201325451,0.59721144,3491.7,3491.3,2.86422]
[1721201325650,0.59721144,3491.8,3491.3,2.86422]
[1721201326760,0.59721144,3491.7,3491.1,2.86438]
[1721201326975,0.59721144,3491.6,3491.1,2.86438]
[1721201327172,0.59721144,3491.5,3491.1,2.86438]
[1721201327840,0.59721144,3491.6,3491.1,2.86438]
[1721201330165,0.59721144,3491.7,3491.1,2.86438]
[1721201330364,0.59721144,3491.7,3491.2,2.86434]
[1721201330566,0.59721144,3491.6,3491.2,2.86434]
[1721201331061,0.59721144,3491.7,3491.2,2.86434]
[1721201332766,0.59721144,3491.7,3491.2,3.86934]
[1721201333484,0.59721144,3491.7,3491.2,1.005]
[1721201333656,3.46112144,3491.8,3491.2,1.005]
[1721201334181,3.46112144,3491.8,3491.1,2.8644]
[1721201334946,0.59721144,3491.7,3491.1,2.8644]
[1721201335282,3.46112144,3491.8,3491.1,2.8644]
[1721201335487,0.59721144,3491.8,3491.2,2.86427]
[1721201337360,0.59721144,3491.8,3491.3,0.0521995]
[1721201337689,0.59721144,3491.8,3491.2,2.86427]
[1721201337839,0.59721144,3491.8,3491.3,0.05224217]
[1721201338042,0.59721144,3491.8,3491.2,2.86427]
[1721201338280,0.59721144,3491.8,3491.3,0.05224217]
[1721201338459,0.59721144,3491.8,3491.2,2.86427]
[1721201338666,0.59721144,3491.8,3491.3,0.05224217]
[1721201338898,0.59721144,3491.8,3491.2,2.86427]
[1721201339068,0.59721144,3491.8,3491.3,0.05224217]
[1721201339242,0.59721144,3491.8,3491.2,2.86427]
[1721201339443,0.59721144,3491.8,3491.3,0.05224217]
[1721201339639,0.59721144,3491.8,3491.2,2.86427]
[1721201339883,0.59721144,3491.8,3491.3,0.05224217]
[1721201340094,0.59721144,3491.8,3491.2,3.86927]
[1721201340296,0.59721144,3491.9,3491.4,2.4533]
[1721201340495,0.59721144,3491.9,3491.5,0.05212807]
[1721201340664,0.59721144,3492.1,3491.8,1.005]
[1721201340864,0.59721144,3492.6,3492.0,1.005]
[1721201341177,0.59721144,3492.6,3492.1,0.05178587]
[1721201341367,0.59721144,3492.6,3492.2,2.86351]
[1721201341562,0.59721144,3492.7,3492.2,2.86351]
[1721201341771,0.59721144,3492.7,3492.3,0.05169115]
[1721201342157,0.59721144,3492.8,3492.2,6.18161]
[1721201342357,0.59721144,3492.8,3492.4,0.05160918]
[1721201342561,0.59721144,3492.8,3492.3,0.05166619]
[1721201342761,0.59721144,3492.8,3492.2,2.3131]
[1721201343060,0.59721144,3493.1,3492.6,2.86314]
[1721201343256,0.59721144,3493.1,3492.7,1.05641722]
[1721201343503,2.86258,3493.4,3492.7,1.05641722]
[1721201343504,0.59721144,3493.2,3492.7,1.05641722]
[1721201344207,0.59721144,3493.2,3492.7,3.91951722]
[1721201344760,0.59721144,3493.2,3492.7,2.91451722]
[1721201344992,0.59721144,3493.2,3492.7,0.05141722]
[1721201345410,0.59721144,3493.2,3492.5,1.005]
[1721201345609,0.59721144,3493.2,3492.8,0.05136021]
[1721201345769,0.59721144,3493.2,3492.5,1.005]
[1721201346103,0.59721144,3493.2,3492.6,2.86313]
[1721201346405,0.59721144,3493.2,3492.7,2.91451722]
[1721201349199,0.59721144,3493.3,3492.7,2.91451722]